fUSD/lending_fUSD_20240612
["ID","MTS","AMOUNT","RATE_DAILY","PERIOD"]
[329270792,1718207451596,-13932.39983999,0.00018798,2]
[329270794,1718207451606,-649.72311182,0.00018798,2]
[329270796,1718207451618,-1067.92836055,0.00018798,2]
[329270798,1718207451628,-334.29552451,0.00018798,2]
[329270800,1718207451638,-274.89751879,0.00018799,2]
[329270802,1718207451650,-156.38728002,0.00018799,2]
[329270804,1718207451661,-1128.29959157,0.00018799,2]
[329270806,1718207451673,-269.06781082,0.00018799,2]
[329270808,1718207451683,-20106.7221,0.000188,2]
[329270810,1718207451694,-130042.3995,0.000188,2]
[329270812,1718207451704,-2068.6938,0.000188,2]
[329270814,1718207451714,-323.8324,0.000188,2]
[329270816,1718207451724,-155.1912628,0.0001886,2]
[329270818,1718207451735,-400.0,0.00018892,2]
[329270820,1718207451745,-151.65,0.00019168,2]
[329270822,1718207451755,-207.8570542,0.00019177,2]
[329270824,1718207451764,-500.0,0.00019178,2]
[329270826,1718207451774,-500.0,0.00019178,2]
[329270828,1718207451784,-515.04630765,0.00019178,2]
[329270829,1718207451795,-500.0,0.00019178,2]
[329270832,1718207451806,-500.0,0.00019178,2]
[329270834,1718207451817,-500.0,0.00019178,2]
[329270835,1718207451828,-500.0,0.00019178,2]
[329270837,1718207451838,-257.23947308,0.00019178,2]
[329270839,1718207451848,-636.78116668,0.00019178,2]
[329270840,1718207451858,-462.99794306,0.00019178,2]
[329270841,1718207451869,-500.0,0.00019178,2]
[329270843,1718207451879,-500.0,0.00019178,2]
[329270844,1718207451889,-500.0,0.00019178,2]
[329270846,1718207451900,-500.0,0.00019178,2]
[329270848,1718207451910,-504.72739672,0.00019178,2]
[329270850,1718207451920,-500.0,0.00019178,2]
[329270851,1718207451930,-500.0,0.00019178,2]
[329270852,1718207451940,-500.0,0.00019178,2]
[329270853,1718207451951,-500.0,0.00019178,2]
[329270854,1718207451961,-500.0,0.00019178,2]
[329270855,1718207451971,-605.81091895,0.00019178,2]
[329270856,1718207451981,-500.0,0.00019178,2]
[329270857,1718207451991,-464.47352758,0.00019178,2]
[329270858,1718207452001,-500.0,0.00019178,2]
[329270859,1718207452011,-636.42970964,0.00019178,2]
[329270860,1718207452022,-500.0,0.00019178,2]
[329270861,1718207452032,-500.0,0.00019178,2]
[329270862,1718207452042,-500.0,0.00019178,2]
[329270863,1718207452052,-500.0,0.00019178,2]
[329270864,1718207452062,-517.3949632,0.00019178,2]
[329270865,1718207452072,-500.0,0.00019178,2]
[329270866,1718207452083,-500.0,0.00019178,2]
[329270867,1718207452093,-500.0,0.00019178,2]
[329270868,1718207452103,-500.0,0.00019178,2]
[329270869,1718207452114,-500.0,0.00019178,2]
[329270870,1718207452124,-500.0,0.00019178,2]
[329270871,1718207452134,-522.46104564,0.00019178,2]
[329270872,1718207452145,-500.0,0.00019178,2]
[329270873,1718207452155,-500.0,0.00019178,2]
[329270874,1718207452165,-500.0,0.00019178,2]
[329270875,1718207452175,-500.0,0.00019178,2]
[329270876,1718207452185,-500.0,0.00019178,2]
[329270877,1718207452196,-500.0,0.00019178,2]
[329270878,1718207452208,-500.0,0.00019178,2]
[329270879,1718207452219,-500.0,0.00019178,2]
[329270880,1718207452234,-500.0,0.00019178,2]
[329270881,1718207452245,-500.0,0.00019178,2]
[329270882,1718207452255,-500.0,0.00019178,2]
[329270883,1718207452267,-500.0,0.00019178,2]
[329270884,1718207452277,-500.0,0.00019178,2]
[329270885,1718207452288,-500.0,0.00019178,2]
[329270886,1718207452298,-500.0,0.00019178,2]
[329270887,1718207452311,-500.0,0.00019178,2]
[329270888,1718207452337,-500.0,0.00019178,2]
[329270889,1718207452347,-500.0,0.00019178,2]
[329270890,1718207452358,-492.25617987,0.00019178,2]
[329270891,1718207452369,-500.0,0.00019178,2]
[329270892,1718207452379,-500.0,0.00019178,2]
[329270893,1718207452389,-500.0,0.00019178,2]
[329270894,1718207452400,-500.0,0.00019178,2]
[329270895,1718207452410,-500.0,0.00019178,2]
[329270896,1718207452420,-500.0,0.00019178,2]
[329270897,1718207452430,-500.0,0.00019178,2]
[329270898,1718207452441,-500.0,0.00019178,2]
[329270899,1718207452451,-500.0,0.00019178,2]
[329270900,1718207452462,-500.0,0.00019178,2]
[329270901,1718207452472,-500.0,0.00019178,2]
[329270902,1718207452483,-500.0,0.00019178,2]
[329270903,1718207452494,-500.0,0.00019178,2]
[329270904,1718207452504,-500.0,0.00019178,2]
[329270905,1718207452514,-500.0,0.00019178,2]
[329270906,1718207452525,-500.0,0.00019178,2]
[329270907,1718207452536,-500.0,0.00019178,2]
[329270908,1718207452546,-543.28487192,0.00019178,2]
[329270909,1718207452556,-500.0,0.00019178,2]
[329270910,1718207452566,-500.0,0.00019178,2]
[329270911,1718207452576,-500.0,0.00019178,2]
[329270912,1718207452587,-162.3720487,0.00019178,2]
[329270913,1718207452598,-510.58544795,0.00019178,2]
[329270914,1718207452609,-500.0,0.00019178,2]
[329270915,1718207452619,-500.0,0.00019178,2]
[329270916,1718207452629,-500.0,0.00019178,2]
[329270917,1718207452640,-500.0,0.00019178,2]
[329270918,1718207452652,-564.10113273,0.00019178,2]
[329270920,1718207452662,-500.0,0.00019178,2]
[329270921,1718207452672,-500.0,0.00019178,2]
[329270922,1718207452682,-483.99328009,0.00019178,2]
[329270923,1718207452694,-540.02,0.00019178,2]
[329270924,1718207452704,-500.0,0.00019178,2]
[329270925,1718207452714,-500.0,0.00019178,2]
[329270927,1718207452725,-500.0,0.00019178,2]
[329270929,1718207452736,-359.45750363,0.00019178,2]
[329270931,1718207452746,-500.0,0.00019178,2]
[329270933,1718207452757,-500.0,0.00019178,2]
[329270935,1718207452769,-500.0,0.00019178,2]
[329270936,1718207452779,-500.0,0.00019178,2]
[329270937,1718207452791,-728.97,0.00019178,2]
[329270938,1718207452802,-500.0,0.00019178,2]
[329270939,1718207452812,-500.0,0.00019178,2]
[329270940,1718207452824,-500.0,0.00019178,2]
[329270941,1718207452834,-500.0,0.00019178,2]
[329270942,1718207452848,-500.0,0.00019178,2]
[329270943,1718207452858,-500.0,0.00019178,2]
[329270944,1718207452868,-500.0,0.00019178,2]
[329270945,1718207452879,-500.0,0.00019178,2]
[329270946,1718207452897,-505.7318399,0.00019178,2]
[329270947,1718207452908,-507.30447875,0.00019178,2]
[329270948,1718207452918,-504.93378801,0.00019178,2]
[329270949,1718207452932,-502.42368638,0.00019178,2]
[329270950,1718207452943,-506.66532128,0.00019178,2]
[329270951,1718207452955,-530.64954924,0.00019178,2]
[329270952,1718207452969,-503.23602539,0.00019178,2]
[329270953,1718207452981,-502.89750854,0.00019178,2]
[329270954,1718207452992,-550.02250703,0.00019178,2]
[329270955,1718207453006,-500.0,0.00019178,2]
[329270956,1718207453017,-500.0,0.00019178,2]
[329270957,1718207453031,-509.502812,0.00019178,2]
[329270958,1718207453042,-505.64516401,0.00019178,2]
[329270959,1718207453058,-505.91616701,0.00019178,2]
[329270960,1718207453069,-473.98350658,0.00019178,2]
[329270961,1718207453084,-500.0,0.00019178,2]
[329270962,1718207453095,-514.29186605,0.00019178,2]
[329270963,1718207453106,-500.0,0.00019178,2]
[329270964,1718207453117,-500.0,0.00019178,2]
[329270965,1718207453129,-514.17245947,0.00019178,2]
[329270966,1718207453149,-500.0,0.00019178,2]
[329270967,1718207453166,-500.0,0.00019178,2]
[329270968,1718207453189,-528.37,0.00019178,2]
[329270969,1718207453202,-500.0,0.00019178,2]
[329270970,1718207453212,-500.0,0.00019178,2]
[329270971,1718207453225,-500.0,0.00019178,2]
[329270972,1718207453235,-500.0,0.00019178,2]
[329270973,1718207453247,-500.0,0.00019178,2]
[329270974,1718207453258,-500.0,0.00019178,2]
[329270975,1718207453274,-500.0,0.00019178,2]
[329270976,1718207453286,-500.0,0.00019178,2]
[329270977,1718207453297,-453.32852224,0.00019178,2]
[329270978,1718207453309,-571.24,0.00019178,2]
[329270979,1718207453340,-500.0,0.00019178,2]
[329270980,1718207453353,-500.0,0.00019178,2]
[329270981,1718207453365,-942.59,0.00019178,2]
[329270982,1718207453375,-500.0,0.00019178,2]
[329270983,1718207453386,-500.0,0.00019178,2]
[329270984,1718207453398,-500.0,0.00019178,2]
[329270985,1718207453408,-500.0,0.00019178,2]
[329270986,1718207453419,-500.0,0.00019178,2]
[329270987,1718207453431,-525.47,0.00019178,2]
[329270988,1718207453442,-500.0,0.00019178,2]
[329270989,1718207453464,-500.0,0.00019178,2]
[329270990,1718207453475,-500.0,0.00019178,2]
[329270991,1718207453488,-500.0,0.00019178,2]
[329270992,1718207453508,-540.15,0.00019178,2]
[329270993,1718207453562,-500.0,0.00019178,2]
[329270994,1718207453590,-500.0,0.00019178,2]
[329270995,1718207453601,-807.01,0.00019178,2]
[329270996,1718207453611,-500.0,0.00019178,2]
[329270997,1718207453623,-500.0,0.00019178,2]
[329270998,1718207453633,-649.81,0.00019178,2]
[329270999,1718207453645,-500.0,0.00019178,2]
[329271000,1718207453656,-500.0,0.00019178,2]
[329271001,1718207453666,-500.0,0.00019178,2]
[329271002,1718207453676,-500.0,0.00019178,2]
[329271003,1718207453687,-988.93,0.00019178,2]
[329271004,1718207453702,-500.0,0.00019178,2]
[329271005,1718207453714,-500.0,0.00019178,2]
[329271006,1718207453726,-500.0,0.00019178,2]
[329271007,1718207453745,-500.0,0.00019178,2]
[329271008,1718207453756,-500.0,0.00019178,2]
[329271009,1718207453767,-500.0,0.00019178,2]
[329271010,1718207453952,-500.0,0.00019178,2]
[329271011,1718207453964,-500.0,0.00019178,2]
[329271012,1718207453979,-500.0,0.00019178,2]
[329271013,1718207453995,-500.0,0.00019178,2]
[329271014,1718207454010,-500.0,0.00019178,2]
[329271015,1718207454023,-500.0,0.00019178,2]
[329271016,1718207454036,-719.64,0.00019178,2]
[329271017,1718207454048,-500.0,0.00019178,2]
[329271018,1718207454065,-500.0,0.00019178,2]
[329271019,1718207454078,-500.0,0.00019178,2]
[329271020,1718207454089,-500.0,0.00019178,2]
[329271021,1718207454100,-500.0,0.00019178,2]
[329271022,1718207454113,-500.0,0.00019178,2]
[329271023,1718207454126,-500.0,0.00019178,2]
[329271024,1718207454136,-500.0,0.00019178,2]
[329271025,1718207454150,-500.0,0.00019178,2]
[329271026,1718207454161,-500.0,0.00019178,2]
[329271027,1718207454174,-535.26,0.00019178,2]
[329271028,1718207454186,-500.0,0.00019178,2]
[329271029,1718207454208,-500.0,0.00019178,2]
[329271030,1718207454225,-500.0,0.00019178,2]
[329271031,1718207454239,-500.0,0.00019178,2]
[329271032,1718207454262,-500.0,0.00019178,2]
[329271033,1718207454278,-500.0,0.00019178,2]
[329271034,1718207454289,-943.36,0.00019178,2]
[329271035,1718207454303,-500.0,0.00019178,2]
[329271036,1718207454328,-500.0,0.00019178,2]
[329271037,1718207454351,-500.0,0.00019178,2]
[329271038,1718207454373,-500.0,0.00019178,2]
[329271039,1718207454385,-500.0,0.00019178,2]
[329271040,1718207454407,-500.0,0.00019178,2]
[329271041,1718207454424,-500.0,0.00019178,2]
[329271042,1718207454442,-500.0,0.00019178,2]
[329271043,1718207454462,-500.0,0.00019178,2]
[329271044,1718207454499,-500.0,0.00019178,2]
[329271045,1718207454514,-500.0,0.00019178,2]
[329271046,1718207454534,-500.0,0.00019178,2]
[329271047,1718207454544,-500.0,0.00019178,2]
[329271048,1718207454558,-500.0,0.00019178,2]
[329271049,1718207454570,-500.0,0.00019178,2]
[329271050,1718207454581,-500.0,0.00019178,2]
[329271051,1718207454592,-500.0,0.00019178,2]
[329271052,1718207454605,-586.23,0.00019178,2]
[329271053,1718207454628,-500.0,0.00019178,2]
[329271054,1718207454650,-500.0,0.00019178,2]
[329271055,1718207454662,-500.0,0.00019178,2]
[329271056,1718207454673,-500.0,0.00019178,2]
[329271057,1718207454684,-506.87550695,0.00019178,2]
[329271058,1718207454695,-500.0,0.00019178,2]
[329271059,1718207454706,-500.0,0.00019178,2]
[329271060,1718207454719,-500.0,0.00019178,2]
[329271061,1718207454731,-678.08,0.00019178,2]
[329271062,1718207454747,-500.0,0.00019315,2]
[329271063,1718207454762,-500.0,0.00019315,2]
[329271064,1718207454775,-500.0,0.00019315,2]
[329271065,1718207454787,-194.46,0.00019315,2]
[329271066,1718207454801,-500.0,0.00019315,2]
[329271067,1718207454813,-500.0,0.00019315,2]
[329271068,1718207454827,-2.60632793,0.00019315,2]
[329271071,1718207549907,155.1912628,0.00013498,2]
[329271072,1718207576228,20276.69727695,0.00013498,2]
[329271073,1718207594243,12841.05365604,0.00013498,2]
[329271074,1718207668785,1610.37,0.00024329,30]
[329271077,1718207925541,-155.0,0.00014215,2]
[329271078,1718207925582,-2337.61531293,0.00014215,2]
[329271079,1718207925624,-4126.118,0.00014216,2]
[329271080,1718207925700,-150.0,0.00014995,2]
[329271081,1718207925756,-302.0,0.00014996,2]
[329271082,1718207925810,-3255.02186028,0.00014997,2]
[329271083,1718207925858,-531.47230708,0.00014997,2]
[329271084,1718207925892,-156.47913975,0.00014998,2]
[329271085,1718207925940,-206.54544582,0.00014998,2]
[329271086,1718207925981,-274.89751879,0.00014998,2]
[329271087,1718207926052,-269.06781082,0.00014998,2]
[329271088,1718207926089,-334.29552451,0.00014998,2]
[329271089,1718207926135,-207.8570542,0.00014998,2]
[329271090,1718207926172,-160.78646615,0.00014998,2]
[329271091,1718207926211,-160.26537688,0.00014998,2]
[329271092,1718207926248,-155.0,0.00014998,2]
[329271093,1718207926297,-544.02396794,0.00014998,2]
[329271094,1718207926332,-1067.92836055,0.00014998,2]
[329271095,1718207926382,-248.92686412,0.00014998,2]
[329271096,1718207926422,-13932.39983999,0.00014998,2]
[329271097,1718207926460,-300.14317843,0.00014998,2]
[329271098,1718207926506,-156.38728002,0.00014998,2]
[329271099,1718207926542,-235.77130805,0.00014998,2]
[329271100,1718207926580,-346.62672627,0.00015,2]
[329271101,1718207926619,-1362.61061232,0.00015,2]
[329271102,1718207926657,-362.72006922,0.00015,2]
[329271103,1718207926692,-155.0,0.00015,2]
[329271104,1718207926730,-299450.26538324,0.00015,2]
[329271105,1718208175456,-150.0,0.00014999,2]
[329271106,1718208175499,-29268.00261631,0.00015,2]
[329271107,1718208175543,-204.90898564,0.00015,2]
[329271108,1718208210818,764.17526031,0.00028,120]
[329271110,1718208408575,1548.72,0.00024329,30]
[329271128,1718208635086,-456.23,0.00015971,2]
[329271129,1718208635098,-299.78592176,0.00016209,2]
[329271131,1718208635109,-162.99818709,0.00016309,2]
[329271133,1718208635122,-169.11351274,0.00016409,2]
[329271135,1718208635133,-2164.60987855,0.0001641,2]
[329271136,1718208635144,-300.0,0.0001641,2]
[329271137,1718208635155,-800.0,0.00017,2]
[329271138,1718208635165,-626.22089567,0.00017259,2]
[329271139,1718208635176,-455.92,0.00017409,2]
[329271140,1718208635188,-150.99,0.00017409,2]
[329271141,1718208635198,-499.99,0.00017409,2]
[329271142,1718208635208,-811.00819806,0.00017409,2]
[329271143,1718208635223,-5748.58180194,0.00017409,2]
[329271144,1718208635233,-224.99,0.00017419,2]
[329271145,1718208635243,-150.99,0.00017419,2]
[329271146,1718208635254,-964.79,0.00017419,6]
[329271147,1718208635264,-181.69,0.00017419,2]
[329271148,1718208635278,-4603.45538597,0.00017419,2]
[329271149,1718208635290,-969.45652537,0.00017419,2]
[329271150,1718208635303,-3367.93087916,0.00017419,2]
[329271151,1718208635315,-1059.1472095,0.00017419,2]
[329271152,1718208635325,-150.99,0.00017419,2]
[329271153,1718208635335,-250.0,0.00017584,2]
[329271154,1718208635347,-105.17618437,0.00017709,2]
[329271155,1718208635359,-144.82381563,0.00017709,2]
[329271156,1718208635369,-496.5490857,0.00017709,2]
[329271157,1718208635381,-1126.7209143,0.00017709,2]
[329271158,1718208635398,-189.83,0.00017773,2]
[329271159,1718208635427,-7104.91831433,0.00017798,2]
[329271160,1718208635439,-16795.08168567,0.00017798,2]
[329271161,1718208635451,-288.82,0.00017824,2]
[329271162,1718208635461,-258.64,0.00017852,2]
[329271163,1718208635472,-420.0,0.00017934,2]
[329271164,1718208635483,-649.72311182,0.00018,2]
[329271165,1718208635494,-1322.49,0.00018097,2]
[329271166,1718208635512,-456.23,0.00018234,2]
[329271167,1718208635523,-155.45,0.00018882,2]
[329271168,1718208635535,-4973.37173443,0.00019168,2]
[329271169,1718208635545,-651.8382771,0.00019177,2]
[329271170,1718208635559,-522.46104564,0.00019178,2]
[329271171,1718208635569,-500.0,0.00019178,2]
[329271172,1718208635583,-500.0,0.00019178,2]
[329271173,1718208635596,-500.0,0.00019178,2]
[329271174,1718208635610,-500.0,0.00019178,2]
[329271175,1718208635650,-500.0,0.00019178,2]
[329271176,1718208635662,-500.0,0.00019178,2]
[329271177,1718208635677,-500.0,0.00019178,2]
[329271178,1718208635687,-500.0,0.00019178,2]
[329271179,1718208635734,-500.0,0.00019178,2]
[329271180,1718208635744,-500.0,0.00019178,2]
[329271181,1718208635755,-500.0,0.00019178,2]
[329271182,1718208635766,-500.0,0.00019178,2]
[329271183,1718208635778,-500.0,0.00019178,2]
[329271184,1718208635789,-500.0,0.00019178,2]
[329271185,1718208635799,-500.0,0.00019178,2]
[329271186,1718208635810,-483.99328009,0.00019178,2]
[329271187,1718208635820,-500.0,0.00019178,2]
[329271188,1718208635830,-500.0,0.00019178,2]
[329271189,1718208635840,-543.28487192,0.00019178,2]
[329271190,1718208635850,-500.0,0.00019178,2]
[329271191,1718208635860,-500.0,0.00019178,2]
[329271192,1718208635870,-510.58544795,0.00019178,2]
[329271193,1718208635879,-500.0,0.00019178,2]
[329271194,1718208635890,-500.0,0.00019178,2]
[329271195,1718208635902,-500.0,0.00019178,2]
[329271196,1718208635912,-500.0,0.00019178,2]
[329271197,1718208635923,-500.0,0.00019178,2]
[329271198,1718208635934,-500.0,0.00019178,2]
[329271199,1718208635945,-500.0,0.00019178,2]
[329271200,1718208635956,-500.0,0.00019178,2]
[329271201,1718208635965,-500.0,0.00019178,2]
[329271202,1718208635975,-500.0,0.00019178,2]
[329271203,1718208635987,-500.0,0.00019178,2]
[329271204,1718208635998,-500.0,0.00019178,2]
[329271205,1718208636008,-500.0,0.00019178,2]
[329271206,1718208636019,-500.0,0.00019178,2]
[329271207,1718208636031,-500.0,0.00019178,2]
[329271208,1718208636041,-500.0,0.00019178,2]
[329271209,1718208636054,-182.71715318,0.00019178,2]
[329271210,1718208636069,-500.0,0.00019178,2]
[329271211,1718208636080,-500.0,0.00019178,2]
[329271212,1718208636091,-381.62284682,0.00019178,2]
[329271213,1718208636102,-500.0,0.00019178,2]
[329271214,1718208636115,-514.29186605,0.00019178,2]
[329271215,1718208636126,-500.0,0.00019178,2]
[329271216,1718208636141,-500.0,0.00019178,2]
[329271217,1718208636156,-273.20672261,0.00019178,2]
[329271218,1718208636168,-500.0,0.00019178,2]
[329271219,1718208636178,-509.502812,0.00019178,2]
[329271220,1718208636192,-505.91616701,0.00019178,2]
[329271221,1718208636202,-500.0,0.00019178,2]
[329271222,1718208636214,-514.17245947,0.00019178,2]
[329271223,1718208636226,-500.0,0.00019178,2]
[329271224,1718208636237,-528.37,0.00019178,2]
[329271225,1718208636249,-500.0,0.00019178,2]
[329271226,1718208636261,-500.0,0.00019178,2]
[329271227,1718208636272,-492.25617987,0.00019178,2]
[329271228,1718208636286,-500.0,0.00019178,2]
[329271229,1718208636297,-500.0,0.00019178,2]
[329271230,1718208636309,-500.0,0.00019178,2]
[329271231,1718208636320,-500.0,0.00019178,2]
[329271232,1718208636333,-500.0,0.00019178,2]
[329271233,1718208636345,-500.0,0.00019178,2]
[329271234,1718208636357,-500.0,0.00019178,2]
[329271235,1718208636368,-500.0,0.00019178,2]
[329271236,1718208636378,-500.0,0.00019178,2]
[329271237,1718208636389,-500.0,0.00019178,2]
[329271238,1718208636398,-500.0,0.00019178,2]
[329271239,1718208636409,-500.0,0.00019178,2]
[329271240,1718208636423,-500.0,0.00019178,2]
[329271241,1718208636436,-500.0,0.00019178,2]
[329271242,1718208636446,-500.0,0.00019178,2]
[329271243,1718208636457,-338.05522541,0.00019178,2]
[329271244,1718208636469,-500.0,0.00019178,2]
[329271245,1718208636481,-500.0,0.00019178,2]
[329271246,1718208636493,-500.0,0.00019178,2]
[329271247,1718208636504,-500.0,0.00019178,2]
[329271248,1718208636515,-500.0,0.00019178,2]
[329271249,1718208636529,-500.0,0.00019178,2]
[329271250,1718208636540,-515.04630765,0.00019178,2]
[329271251,1718208636553,-359.45750363,0.00019178,2]
[329271252,1718208636565,-500.0,0.00019178,2]
[329271253,1718208636578,-500.0,0.00019178,2]
[329271254,1718208636589,-500.0,0.00019178,2]
[329271255,1718208636600,-257.23947308,0.00019178,2]
[329271256,1718208636613,-564.10113273,0.00019178,2]
[329271257,1718208636628,-560.85,0.00019178,2]
[329271258,1718208636642,-636.78116668,0.00019178,2]
[329271259,1718208636652,-500.0,0.00019178,2]
[329271260,1718208636663,-500.0,0.00019178,2]
[329271261,1718208636675,-462.99794306,0.00019178,2]
[329271262,1718208636686,-500.0,0.00019178,2]
[329271263,1718208636698,-500.0,0.00019178,2]
[329271264,1718208636733,-642.69963318,0.00019178,2]
[329271265,1718208636744,-500.0,0.00019178,2]
[329271266,1718208636760,-500.0,0.00019178,2]
[329271267,1718208636771,-505.7318399,0.00019178,2]
[329271268,1718208636787,-500.0,0.00019178,2]
[329271269,1718208636798,-507.30447875,0.00019178,2]
[329271270,1718208636809,-504.93378801,0.00019178,2]
[329271271,1718208636822,-500.0,0.00019178,2]
[329271272,1718208636836,-504.72739672,0.00019178,2]
[329271273,1718208636846,-502.42368638,0.00019178,2]
[329271274,1718208636855,-506.66532128,0.00019178,2]
[329271275,1718208636866,-500.0,0.00019178,2]
[329271276,1718208636878,-503.23602539,0.00019178,2]
[329271278,1718208636889,-550.02250703,0.00019178,2]
[329271279,1718208636901,-500.0,0.00019178,2]
[329271280,1718208636913,-505.64516401,0.00019178,2]
[329271281,1718208636923,-473.98350658,0.00019178,2]
[329271283,1718208636934,-528.49267838,0.00019178,2]
[329271284,1718208636946,-500.0,0.00019178,2]
[329271285,1718208636959,-500.0,0.00019178,2]
[329271286,1718208636977,-458.84288809,0.00019178,2]
[329271287,1718208636989,-500.0,0.00019178,2]
[329271288,1718208637000,-500.0,0.00019178,2]
[329271289,1718208637013,-605.81091895,0.00019178,2]
[329271290,1718208637024,-500.0,0.00019178,2]
[329271291,1718208637034,-464.47352758,0.00019178,2]
[329271292,1718208637052,-636.42970964,0.00019178,2]
[329271293,1718208637062,-500.0,0.00019178,2]
[329271294,1718208637072,-500.0,0.00019178,2]
[329271295,1718208637082,-500.0,0.00019178,2]
[329271296,1718208637093,-517.3949632,0.00019178,2]
[329271297,1718208637102,-614.98,0.00019178,2]
[329271298,1718208637113,-500.0,0.00019178,2]
[329271299,1718208637124,-500.0,0.00019178,2]
[329271300,1718208637136,-500.0,0.00019178,2]
[329271301,1718208637146,-500.0,0.00019178,2]
[329271302,1718208637157,-500.0,0.00019178,2]
[329271303,1718208637168,-500.0,0.00019178,2]
[329271304,1718208637179,-500.0,0.00019178,2]
[329271305,1718208637192,-500.0,0.00019178,2]
[329271306,1718208637203,-500.0,0.00019178,2]
[329271307,1718208637214,-2068.6938,0.00019215,2]
[329271308,1718208637224,-323.8324,0.00019215,2]
[329271309,1718208637234,-168.14,0.00019256,3]
[329271310,1718208637244,-20106.7221,0.00019266,2]
[329271311,1718208637256,-500.0,0.00019315,2]
[329271312,1718208637266,-500.0,0.00019315,2]
[329271313,1718208637277,-500.0,0.00019315,2]
[329271314,1718208637288,-500.0,0.00019315,2]
[329271315,1718208637298,-500.0,0.00019315,2]
[329271316,1718208637308,-500.0,0.00019315,2]
[329271317,1718208637319,-500.0,0.00019315,2]
[329271318,1718208637329,-372.9825316,0.00019315,2]
[329271319,1718208637339,-500.0,0.00019315,2]
[329271320,1718208637349,-500.0,0.00019315,2]
[329271321,1718208637359,-500.0,0.00019315,2]
[329271322,1718208637370,-500.0,0.00019315,2]
[329271323,1718208637380,-194.46,0.00019315,2]
[329271324,1718208637390,-521.61493398,0.00019315,2]
[329271325,1718208637402,-500.0,0.00019315,2]
[329271326,1718208637412,-500.0,0.00019315,2]
[329271327,1718208637422,-500.0,0.00019315,2]
[329271328,1718208637433,-500.0,0.00019315,2]
[329271329,1718208637443,-352.44781126,0.00019315,2]
[329271330,1718208637454,-500.0,0.00019315,2]
[329271331,1718208637465,-500.0,0.00019315,2]
[329271332,1718208637479,-500.0,0.00019315,2]
[329271333,1718208637490,-560.85,0.00019315,2]
[329271334,1718208637500,-500.0,0.00019315,2]
[329271335,1718208637510,-500.0,0.00019315,2]
[329271336,1718208637521,-500.0,0.00019315,2]
[329271337,1718208637536,-500.0,0.00019315,2]
[329271338,1718208637547,-176.90643253,0.00019315,2]
[329271339,1718208637562,-500.0,0.0001945,2]
[329271340,1718208637577,-1164.27,0.0001945,2]
[329271341,1718208637593,-500.0,0.0001945,2]
[329271342,1718208637604,-500.0,0.0001945,2]
[329271343,1718208637616,-500.0,0.0001945,2]
[329271344,1718208637639,-500.0,0.0001945,2]
[329271345,1718208637651,-506.87550695,0.0001945,2]
[329271346,1718208637662,-500.0,0.0001945,2]
[329271347,1718208637674,-500.0,0.0001945,2]
[329271348,1718208637685,-678.08,0.0001945,2]
[329271349,1718208637695,-500.0,0.0001945,2]
[329271350,1718208637726,-500.0,0.0001945,2]
[329271351,1718208637736,-500.0,0.0001945,2]